fUSD/lending_fUSD_20240104
["ID","MTS","AMOUNT","RATE_DAILY","PERIOD"]
[310219229,1704402691146,-616.54,0.0003452,2]
[310219230,1704402691155,-500.0,0.0003452,2]
[310219231,1704402691165,-1525.72,0.0003452,2]
[310219232,1704402691174,-613.63,0.0003452,2]
[310219233,1704402691183,-637.93,0.0003452,2]
[310219234,1704402691193,-500.0,0.0003452,2]
[310219235,1704402691203,-500.0,0.0003452,2]
[310219236,1704402691213,-500.0,0.0003452,2]
[310219237,1704402691223,-878.05,0.0003452,2]
[310219238,1704402691234,-500.0,0.0003452,2]
[310219239,1704402691244,-500.0,0.0003452,2]
[310219240,1704402691254,-902.92,0.0003452,2]
[310219241,1704402691264,-500.0,0.0003452,2]
[310219242,1704402691276,-500.0,0.0003452,2]
[310219243,1704402691286,-500.0,0.0003452,2]
[310219244,1704402691296,-500.0,0.0003452,2]
[310219245,1704402691305,-589.16,0.0003452,2]
[310219246,1704402691315,-500.0,0.0003452,2]
[310219247,1704402691326,-500.0,0.0003452,2]
[310219248,1704402691335,-500.0,0.0003452,2]
[310219249,1704402691345,-500.0,0.0003452,2]
[310219250,1704402691355,-500.0,0.0003452,2]
[310219251,1704402691365,-500.0,0.0003452,2]
[310219252,1704402691375,-984.56,0.0003452,2]
[310219253,1704402691385,-500.0,0.0003452,2]
[310219254,1704402691395,-563.07,0.0003452,2]
[310219255,1704402691406,-500.0,0.0003452,2]
[310219256,1704402691416,-386.46,0.0003452,2]
[310219257,1704402691428,-2695.69,0.0003452,2]
[310219258,1704402691438,-786.61,0.0003452,2]
[310219259,1704402691448,-500.0,0.0003452,2]
[310219260,1704402691460,-1449.26,0.0003452,2]
[310219261,1704402691470,-6403.69,0.0003452,2]
[310219262,1704402691481,-500.0,0.0003452,2]
[310219263,1704402691491,-500.0,0.0003452,2]
[310219264,1704402691505,-565.56,0.0003452,2]
[310219265,1704402691516,-573.87,0.0003452,2]
[310219266,1704402691526,-500.0,0.0003452,2]
[310219267,1704402691536,-500.0,0.0003452,2]
[310219268,1704402691547,-500.0,0.0003452,2]
[310219269,1704402691557,-750.62,0.0003452,2]
[310219270,1704402691567,-1503.12,0.0003452,2]
[310219271,1704402691577,-500.0,0.0003452,2]
[310219272,1704402691588,-500.0,0.0003452,2]
[310219273,1704402691598,-515.26,0.0003452,2]
[310219274,1704402691608,-500.0,0.0003452,2]
[310219275,1704402691618,-500.0,0.0003452,2]
[310219276,1704402691628,-500.0,0.0003452,2]
[310219277,1704402691638,-1352.57,0.0003452,2]
[310219278,1704402691649,-500.0,0.0003452,2]
[310219279,1704402691659,-4498.58,0.0003452,2]
[310219280,1704402691669,-1460.37,0.0003452,2]
[310219281,1704402691680,-647.5,0.0003452,2]
[310219282,1704402691690,-500.0,0.0003452,2]
[310219283,1704402691700,-500.0,0.0003452,2]
[310219284,1704402691710,-500.0,0.0003452,2]
[310219285,1704402691720,-895.41,0.0003452,2]
[310219286,1704402691731,-500.0,0.0003452,2]
[310219287,1704402691741,-500.0,0.0003452,2]
[310219288,1704402691751,-500.0,0.0003452,2]
[310219289,1704402691763,-500.0,0.0003452,2]
[310219290,1704402691774,-500.0,0.0003452,2]
[310219291,1704402691783,-500.0,0.0003452,2]
[310219292,1704402691793,-761.85,0.0003452,2]
[310219293,1704402691803,-500.0,0.0003452,2]
[310219294,1704402691813,-500.0,0.0003452,2]
[310219295,1704402691823,-500.0,0.0003452,2]
[310219296,1704402691834,-500.0,0.0003452,2]
[310219297,1704402691844,-2111.24,0.0003452,2]
[310219298,1704402691854,-500.0,0.0003452,2]
[310219299,1704402691865,-1731.46,0.0003452,2]
[310219300,1704402691878,-500.0,0.0003452,2]
[310219301,1704402691888,-928.81,0.0003452,2]
[310219302,1704402691898,-473.66401561,0.0003452,2]
[310219303,1704402691908,-1123.24,0.0003452,2]
[310219304,1704402691919,-1937.57,0.0003452,2]
[310219305,1704402691929,-550.84,0.0003452,2]
[310219306,1704402691939,-500.0,0.0003452,2]
[310219307,1704402691949,-500.0,0.0003452,2]
[310219308,1704402691959,-500.0,0.0003452,2]
[310219309,1704402691970,-504.38,0.0003452,2]
[310219310,1704402691981,-1072.15,0.0003452,2]
[310219311,1704402691991,-729.82,0.0003452,2]
[310219312,1704402692001,-500.0,0.0003452,2]
[310219313,1704402692011,-500.0,0.0003452,2]
[310219314,1704402692021,-500.0,0.0003452,2]
[310219315,1704402692031,-500.0,0.0003452,2]
[310219316,1704402692042,-500.000001,0.0003452,2]
[310219317,1704402692052,-2257.92,0.0003452,2]
[310219318,1704402692062,-500.0,0.0003452,2]
[310219319,1704402692072,-500.0,0.0003452,2]
[310219320,1704402692082,-1167.4,0.0003452,2]
[310219321,1704402692092,-831.43,0.0003452,2]
[310219322,1704402692102,-408.60959212,0.0003452,2]
[310219323,1704402692113,-1414.25,0.0003452,2]
[310219324,1704402692123,-1040.38,0.0003452,2]
[310219325,1704402692133,-500.0,0.0003452,2]
[310219326,1704402692143,-828.1,0.0003452,2]
[310219327,1704402692153,-500.0,0.0003452,2]
[310219328,1704402692163,-500.0,0.0003452,2]
[310219329,1704402692174,-500.0,0.0003452,2]
[310219330,1704402692184,-500.0,0.0003452,2]
[310219331,1704402692194,-500.0,0.0003452,2]
[310219332,1704402692204,-500.0,0.0003452,2]
[310219333,1704402692214,-500.0,0.0003452,2]
[310219334,1704402692224,-678.15,0.0003452,2]
[310219335,1704402692236,-500.0,0.0003452,2]
[310219336,1704402692246,-500.0,0.0003452,2]
[310219337,1704402692257,-500.0,0.0003452,2]
[310219338,1704402692267,-500.0,0.0003452,2]
[310219339,1704402692277,-500.0,0.0003452,2]
[310219340,1704402692287,-500.0,0.0003452,2]
[310219341,1704402692297,-1448.36,0.0003452,2]
[310219342,1704402692307,-3404.28,0.00034521,2]
[310219343,1704402692318,-151.69832518,0.0003455,2]
[310219344,1704402692328,-163.66,0.00034617,2]
[310219345,1704402692338,-2504.5170485,0.0003465,2]
[310219346,1704402692348,-180.0,0.00034658,2]
[310219347,1704402692358,-153.84,0.00034703,2]
[310219348,1704402692368,-264.44,0.00034738,2]
[310219349,1704402692377,-150.0,0.00034756,2]
[310219350,1704402692387,-150.0,0.00034772,2]
[310219351,1704402692397,-150.0,0.00034784,2]
[310219352,1704402692407,-151.0,0.00034794,7]
[310219353,1704402692417,-235.232057,0.00034794,7]
[310219355,1704402692426,-358.55686288,0.00034794,2]
[310219356,1704402692436,-500.0,0.00034794,2]
[310219357,1704402692446,-393.12,0.00034794,2]
[310219358,1704402692455,-500.0,0.00034794,2]
[310219359,1704402692466,-500.0,0.00034794,2]
[310219360,1704402692475,-527.77260709,0.00034794,2]
[310219361,1704402692486,-500.0,0.00034794,2]
[310219362,1704402692496,-500.0,0.00034794,2]
[310219363,1704402692505,-500.0,0.00034794,2]
[310219364,1704402692515,-500.0,0.00034794,2]
[310219365,1704402692525,-500.0,0.00034794,2]
[310219366,1704402692535,-554.75,0.00034794,2]
[310219367,1704402692545,-500.0,0.00034794,2]
[310219368,1704402692554,-500.0,0.00034794,2]
[310219369,1704402692564,-500.0,0.00034794,2]
[310219370,1704402692575,-500.0,0.00034794,2]
[310219371,1704402692585,-500.0,0.00034794,2]
[310219372,1704402692595,-500.0,0.00034794,2]
[310219373,1704402692605,-500.0,0.00034794,2]
[310219374,1704402692615,-500.0,0.00034794,2]
[310219375,1704402692625,-500.0,0.00034794,2]
[310219376,1704402692636,-500.0,0.00034794,2]
[310219377,1704402692646,-429.26932522,0.00034794,2]
[310219378,1704402692655,-500.0,0.00034794,2]
[310219379,1704402692665,-597.07698457,0.00034794,2]
[310219380,1704402692675,-500.0,0.00034794,2]
[310219381,1704402692685,-500.0,0.00034794,2]
[310219382,1704402692695,-500.0,0.00034794,2]
[310219383,1704402692705,-500.0,0.00034794,2]
[310219384,1704402692714,-500.0,0.00034794,2]
[310219385,1704402692724,-500.0,0.00034794,2]
[310219386,1704402692735,-500.0,0.00034794,2]
[310219387,1704402692745,-500.0,0.00034794,2]
[310219388,1704402692755,-500.0,0.00034794,2]
[310219389,1704402692765,-500.0,0.00034794,2]
[310219390,1704402692775,-500.0,0.00034794,2]
[310219391,1704402692785,-500.0,0.00034794,2]
[310219392,1704402692794,-500.0,0.00034794,2]
[310219393,1704402692804,-500.0,0.00034794,2]
[310219394,1704402692814,-353.4,0.00034794,2]
[310219395,1704402692825,-413.54103303,0.00034794,2]
[310219396,1704402692834,-500.0,0.00034794,2]
[310219397,1704402692844,-500.0,0.00034794,2]
[310219398,1704402692854,-505.86757906,0.00034794,2]
[310219399,1704402692863,-1160.79,0.00034794,2]
[310219400,1704402692874,-339.40111063,0.00034794,2]
[310219401,1704402692884,-500.0,0.00034794,2]
[310219402,1704402692894,-500.0,0.00034794,2]
[310219403,1704402692903,-500.0,0.00034794,2]
[310219404,1704402692913,-500.0,0.00034794,2]
[310219405,1704402692923,-500.0,0.00034794,2]
[310219406,1704402692933,-500.0,0.00034794,2]
[310219407,1704402692942,-500.0,0.00034794,2]
[310219408,1704402692952,-738.09,0.00034794,2]
[310219409,1704402692962,-500.0,0.00034794,2]
[310219410,1704402692971,-500.0,0.00034794,2]
[310219411,1704402692982,-500.0,0.00034794,2]
[310219412,1704402692991,-600.18263134,0.00034794,2]
[310219413,1704402693000,-500.0,0.00034794,2]
[310219414,1704402693010,-500.0,0.00034794,2]
[310219415,1704402693020,-807.57,0.00034794,2]
[310219416,1704402693029,-500.0,0.00034794,2]
[310219417,1704402693039,-500.0,0.00034794,2]
[310219418,1704402693049,-500.0,0.00034794,2]
[310219419,1704402693059,-500.0,0.00034794,2]
[310219420,1704402693070,-500.0,0.00034794,2]
[310219421,1704402693080,-617.63034795,0.00034794,2]
[310219422,1704402693090,-527.72,0.00034794,2]
[310219423,1704402693099,-687.6,0.00034794,2]
[310219424,1704402693110,-500.0,0.00034794,2]
[310219425,1704402693120,-500.0,0.00034794,2]
[310219426,1704402693132,-500.0,0.00034794,2]
[310219427,1704402693142,-500.0,0.00034794,2]
[310219428,1704402693152,-500.0,0.00034794,2]
[310219429,1704402693163,-500.0,0.00034794,2]
[310219430,1704402693173,-500.0,0.00034794,2]
[310219431,1704402693182,-500.0,0.00034794,2]
[310219432,1704402693192,-500.0,0.00034794,2]
[310219433,1704402693202,-500.0,0.00034794,2]
[310219434,1704402693212,-500.0,0.00034794,2]
[310219435,1704402693221,-500.0,0.00034794,2]
[310219436,1704402693232,-500.0,0.00034794,2]
[310219437,1704402693242,-500.0,0.00034794,2]
[310219438,1704402693252,-500.0,0.00034794,2]
[310219439,1704402693261,-500.0,0.00034794,2]
[310219440,1704402693271,-602.44,0.00034794,2]
[310219441,1704402693280,-500.0,0.00034794,2]
[310219442,1704402693290,-500.0,0.00034794,2]
[310219443,1704402693300,-660.7,0.00034794,2]
[310219444,1704402693309,-500.0,0.00034794,2]
[310219445,1704402693319,-722.69,0.00034794,2]
[310219446,1704402693329,-598.95,0.00034794,2]
[310219447,1704402693339,-408.59855395,0.00034794,2]
[310219448,1704402693581,-500.0,0.00034794,2]
[310219449,1704402693600,-541.66,0.00034794,2]
[310219450,1704402693610,-500.0,0.00034794,2]
[310219451,1704402693619,-500.0,0.00034794,2]
[310219452,1704402693629,-505.83,0.00034794,2]
[310219453,1704402693638,-500.0,0.00034794,2]
[310219454,1704402693648,-500.0,0.00034794,2]
[310219455,1704402693657,-500.0,0.00034794,2]
[310219456,1704402693667,-500.0,0.00034794,2]
[310219457,1704402693676,-500.0,0.00034794,2]
[310219458,1704402693687,-500.0,0.00034794,2]
[310219459,1704402693696,-500.0,0.00034794,2]
[310219460,1704402693706,-500.0,0.00034794,2]
[310219461,1704402693716,-718.72,0.00034794,2]
[310219462,1704402693727,-680.79,0.00034794,2]
[310219463,1704402693736,-500.0,0.00034794,2]
[310219464,1704402693746,-500.0,0.00034794,2]
[310219465,1704402693756,-500.0,0.00034794,2]
[310219466,1704402693765,-500.0,0.00034794,2]
[310219467,1704402693776,-1621.27,0.00034794,2]
[310219468,1704402693785,-598.7,0.00034794,2]
[310219469,1704402693794,-500.0,0.00034794,2]
[310219470,1704402693803,-500.0,0.00034794,2]
[310219471,1704402693812,-500.0,0.00034794,2]
[310219472,1704402693821,-738.09,0.00034794,2]
[310219473,1704402693831,-519.11,0.00034794,2]
[310219474,1704402693841,-500.0,0.00034794,2]
[310219475,1704402693850,-500.0,0.00034794,2]
[310219476,1704402693860,-754.73,0.00034794,2]
[310219477,1704402693869,-500.0,0.00034794,2]
[310219478,1704402693879,-500.0,0.00034794,2]
[310219479,1704402693888,-578.29,0.00034794,2]
[310219480,1704402693898,-500.0,0.00034794,2]
[310219481,1704402693907,-500.0,0.00034794,2]
[310219482,1704402693918,-500.0,0.00034794,2]
[310219483,1704402693928,-500.0,0.00034794,2]
[310219484,1704402693938,-947.06,0.00034794,2]
[310219485,1704402693948,-1076.04,0.00034794,2]
[310219486,1704402693957,-500.0,0.00034794,2]
[310219487,1704402693967,-541.45,0.00034794,2]
[310219488,1704402693976,-500.0,0.00034794,2]
[310219489,1704402693987,-519.94,0.00034794,2]
[310219490,1704402693996,-163.51540153,0.00034794,2]
[310219491,1704402694005,-570.54,0.00034794,2]
[310219492,1704402694015,-596.45,0.00034794,2]
[310219493,1704402694026,-917.54,0.00034794,2]
[310219494,1704402694037,-500.0,0.00034794,2]
[310219495,1704402694047,-500.0,0.00034794,2]
[310219496,1704402694057,-500.0,0.00034794,2]
[310219497,1704402694068,-500.0,0.00034794,2]
[310219498,1704402694077,-500.0,0.00034794,2]
[310219499,1704402694087,-500.0,0.00034794,2]
[310219500,1704402694098,-639.13,0.00034794,2]
[310219501,1704402694108,-500.0,0.00034794,2]
[310219502,1704402694117,-774.28,0.00034794,2]
[310219503,1704402694127,-642.46,0.00034794,2]
[310219504,1704402694137,-500.0,0.00034794,2]
[310219505,1704402694147,-500.0,0.00034794,2]
[310219506,1704402694157,-665.84,0.00034794,2]
[310219507,1704402694167,-500.0,0.00034794,2]
[310219508,1704402694177,-500.0,0.00034794,2]
[310219509,1704402694187,-500.0,0.00034794,2]
[310219510,1704402694197,-500.0,0.00034794,2]
[310219511,1704402694207,-500.0,0.00034794,2]
[310219512,1704402694217,-500.0,0.00034794,2]
[310219513,1704402694230,-564.52,0.00034794,2]
[310219514,1704402694239,-500.0,0.00034794,2]
[310219515,1704402694248,-520.83,0.00034794,2]
[310219516,1704402694257,-1863.96,0.00034794,2]
[310219517,1704402694266,-500.0,0.00034794,2]
[310219518,1704402694275,-500.0,0.00034794,2]
[310219519,1704402694285,-500.0,0.00034794,2]
[310219520,1704402694295,-533.03,0.00034794,2]
[310219521,1704402694304,-1044.47,0.00034794,2]
[310219522,1704402694314,-529.97246345,0.00034794,2]
[310219523,1704402694323,-531.47,0.00034794,2]
[310219524,1704402694333,-564.43,0.00034794,2]
[310219525,1704402694343,-1039.05,0.00034794,2]
[310219526,1704402694352,-791.55,0.00034794,2]
[310219527,1704402694362,-1245.41,0.00034794,2]
[310219528,1704402694371,-500.0,0.00034794,2]
[310219529,1704402694381,-757.45,0.00034794,2]
[310219530,1704402694391,-521.07,0.00034794,2]
[310219531,1704402694402,-162.01,0.00034794,2]
[310219532,1704402694412,-500.0,0.00034794,2]
[310219533,1704402694425,-663.54,0.00034794,2]
[310219534,1704402694435,-988.41,0.00034794,2]
[310219535,1704402694446,-1253.45,0.00034794,2]
[310219536,1704402694456,-623.24,0.00034794,2]
[310219537,1704402694466,-1071.01,0.00034794,2]
[310219538,1704402694476,-500.0,0.00034794,2]
[310219539,1704402694493,-1080.17,0.00034794,2]
[310219540,1704402694503,-500.0,0.00034794,2]
[310219541,1704402694513,-500.0,0.00034794,2]
[310219542,1704402694524,-500.0,0.00034794,2]
[310219543,1704402694534,-2123.54,0.00034794,2]
[310219544,1704402694545,-1443.74,0.00034794,2]
[310219545,1704402694555,-583.63310076,0.00034794,2]
[310219546,1704402694565,-500.0,0.00034794,2]
[310219547,1704402694575,-500.0,0.00034794,2]
[310219548,1704402694584,-500.0,0.00034794,2]
[310219549,1704402694594,-500.0,0.00034794,2]
[310219550,1704402694605,-1276.68,0.00034794,2]
[310219551,1704402694615,-500.0,0.00034794,2]
[310219552,1704402694624,-500.0,0.00034794,2]
[310219553,1704402694634,-500.0,0.00034794,2]
[310219554,1704402694644,-500.0,0.00034794,2]
[310219555,1704402694654,-500.0,0.00034794,2]
[310219556,1704402694663,-500.0,0.00034794,2]
[310219557,1704402694674,-500.0,0.00034794,2]
[310219558,1704402694683,-2290.92,0.00034794,2]
[310219559,1704402694694,-500.0,0.00034794,2]
[310219560,1704402694703,-5464.43,0.00034794,2]
[310219561,1704402694713,-1286.86,0.00034794,2]
[310219562,1704402694723,-543.96,0.00034794,2]
[310219563,1704402694736,-623.16,0.00034794,2]
[310219564,1704402694745,-500.0,0.00034794,2]
[310219565,1704402694758,-1530.15,0.00034794,2]
[310219566,1704402694768,-2181.99,0.00034794,2]
[310219567,1704402694778,-500.0,0.00034794,2]
[310219568,1704402694790,-3262.68,0.00034794,2]
[310219569,1704402694800,-1391.97,0.00034794,2]
[310219570,1704402694809,-500.0,0.00034794,2]
[310219571,1704402694820,-500.0,0.00034794,2]
[310219572,1704402694829,-756.79,0.00034794,2]
[310219573,1704402694839,-618.7,0.00034794,2]
[310219574,1704402694849,-1812.71,0.00034794,2]
[310219575,1704402694858,-500.0,0.00034794,2]
[310219576,1704402694867,-500.0,0.00034794,2]
[310219577,1704402694877,-500.0,0.00034794,2]
[310219578,1704402694886,-500.0,0.00034794,2]
[310219579,1704402694895,-500.0,0.00034794,2]
[310219580,1704402694904,-927.7,0.00034794,2]
[310219581,1704402694914,-709.7,0.00034794,2]
[310219582,1704402694923,-1742.56,0.00034794,2]
[310219583,1704402694933,-500.0,0.00034794,2]
[310219584,1704402694942,-7042.65,0.00034794,2]
[310219585,1704402694951,-500.0,0.00034794,2]
[310219586,1704402694960,-500.0,0.00034794,2]
[310219587,1704402694969,-500.0,0.00034794,2]
[310219588,1704402694980,-500.0,0.00034794,2]
[310219589,1704402694989,-500.0,0.00034794,2]
[310219590,1704402694999,-500.0,0.00034794,2]
[310219591,1704402695008,-500.0,0.00034794,2]
[310219592,1704402695018,-910.81,0.00034794,2]
[310219593,1704402695028,-500.0,0.00034794,2]
[310219594,1704402695038,-500.0,0.00034794,2]
[310219595,1704402695048,-500.0,0.00034794,2]
[310219596,1704402695063,-1009.55,0.00034794,2]
[310219597,1704402695073,-500.0,0.00034794,2]
[310219598,1704402695083,-500.0,0.00034794,2]
[310219599,1704402695093,-1739.77,0.00034794,2]
[310219600,1704402695102,-500.0,0.00034794,2]
[310219601,1704402695112,-500.0,0.00034794,2]
[310219602,1704402695122,-500.0,0.00034794,2]
[310219603,1704402695132,-1282.1,0.00034794,2]
[310219604,1704402695142,-500.0,0.00034794,2]
[310219605,1704402695152,-500.0,0.00034794,2]
[310219606,1704402695163,-500.0,0.00034794,2]
[310219607,1704402695173,-500.0,0.00034794,2]
[310219608,1704402695182,-6408.05,0.00034794,2]
[310219609,1704402695192,-500.0,0.00034794,2]
[310219610,1704402695205,-2129.19,0.00034794,2]
[310219611,1704402695215,-1154.96,0.00034794,2]
[310219612,1704402695224,-500.0,0.00034794,2]
[310219613,1704402695236,-1729.84,0.00034794,2]
[310219614,1704402695245,-500.0,0.00034794,2]
[310219615,1704402695256,-500.0,0.00034794,2]
[310219616,1704402695265,-500.0,0.00034794,2]
[310219617,1704402695274,-500.0,0.00034794,2]
[310219618,1704402695284,-913.73,0.00034794,2]
[310219619,1704402695293,-500.0,0.00034794,2]
[310219620,1704402695303,-500.0,0.00034794,2]
[310219621,1704402695312,-500.0,0.00034794,2]
[310219622,1704402695321,-2264.53,0.00034794,2]
[310219623,1704402695331,-4842.28,0.00034794,2]
[310219624,1704402695340,-500.0,0.00034794,2]
[310219625,1704402695350,-500.0,0.00034794,2]
[310219626,1704402695359,-500.0,0.00034794,2]
[310219627,1704402695369,-500.0,0.00034794,2]
[310219628,1704402695378,-2281.55,0.00034794,2]
[310219629,1704402695388,-500.0,0.00034794,2]
[310219630,1704402695399,-500.0,0.00034794,2]
[310219631,1704402695413,-500.0,0.00034794,2]
[310219632,1704402695423,-500.0,0.00034794,2]
[310219633,1704402695432,-500.0,0.00034794,2]
[310219634,1704402695443,-500.0,0.00034794,2]
[310219635,1704402695453,-500.0,0.00034794,2]
[310219636,1704402695463,-500.0,0.00034794,2]
[310219637,1704402695473,-500.0,0.00034794,2]
[310219638,1704402695484,-539.42,0.00034794,2]
[310219639,1704402695494,-983.89,0.00034794,2]
[310219640,1704402695505,-500.0,0.00034794,2]
[310219641,1704402695515,-500.0,0.00034794,2]
[310219642,1704402695524,-500.0,0.00034794,2]
[310219643,1704402695533,-500.0,0.00034794,2]
[310219644,1704402695543,-500.0,0.00034794,2]
[310219645,1704402695553,-500.0,0.00034794,2]
[310219646,1704402695563,-500.0,0.00034794,2]
[310219647,1704402695573,-1154.67,0.00034794,2]
[310219648,1704402695583,-599.93,0.00034794,2]
[310219649,1704402695593,-616.54,0.00034794,2]
[310219650,1704402695603,-500.0,0.00034794,2]
[310219651,1704402695612,-1525.72,0.00034794,2]
[310219652,1704402695622,-613.63,0.00034794,2]
[310219653,1704402695632,-637.93,0.00034794,2]
[310219654,1704402695641,-500.0,0.00034794,2]
[310219655,1704402695651,-500.0,0.00034794,2]
[310219656,1704402695661,-500.0,0.00034794,2]
[310219657,1704402695671,-878.05,0.00034794,2]
[310219658,1704402695681,-500.0,0.00034794,2]
[310219659,1704402695691,-500.0,0.00034794,2]
[310219660,1704402695701,-902.92,0.00034794,2]
[310219661,1704402695711,-500.0,0.00034794,2]
[310219662,1704402695719,-500.0,0.00034794,2]
[310219663,1704402695729,-500.0,0.00034794,2]
[310219664,1704402695739,-500.0,0.00034794,2]
[310219665,1704402695749,-589.16,0.00034794,2]
[310219666,1704402695759,-500.0,0.00034794,2]
[310219667,1704402695768,-500.0,0.00034794,2]
[310219668,1704402695777,-500.0,0.00034794,2]
[310219669,1704402695786,-500.0,0.00034794,2]
[310219670,1704402695794,-500.0,0.00034794,2]
[310219671,1704402695804,-500.0,0.00034794,2]
[310219672,1704402695812,-984.56,0.00034794,2]
[310219673,1704402695821,-500.0,0.00034794,2]
[310219674,1704402695829,-563.07,0.00034794,2]
[310219675,1704402695837,-500.0,0.00034794,2]
[310219676,1704402695845,-2695.69,0.00034794,2]
[310219677,1704402695854,-786.61,0.00034794,2]
[310219678,1704402695862,-500.0,0.00034794,2]
[310219679,1704402695870,-1449.26,0.00034794,2]
[310219680,1704402695879,-6403.69,0.00034794,2]
[310219681,1704402695888,-565.56,0.00034794,2]
[310219682,1704402695950,-500.0,0.00034794,2]
[310219683,1704402695960,-500.0,0.00034794,2]
[310219684,1704402695969,-573.87,0.00034794,2]
[310219685,1704402695981,-500.0,0.00034794,2]
[310219686,1704402695991,-500.0,0.00034794,2]
[310219687,1704402696001,-500.0,0.00034794,2]
[310219688,1704402696011,-750.62,0.00034794,2]
[310219689,1704402696020,-1503.12,0.00034794,2]
[310219690,1704402696030,-500.0,0.00034794,2]
[310219691,1704402696039,-500.0,0.00034794,2]
[310219692,1704402696048,-515.26,0.00034794,2]
[310219693,1704402696058,-500.0,0.00034794,2]
[310219694,1704402696067,-500.0,0.00034794,2]
[310219695,1704402696076,-500.0,0.00034794,2]
[310219696,1704402696086,-1352.57,0.00034794,2]
[310219697,1704402696095,-500.0,0.00034794,2]
[310219698,1704402696105,-4498.58,0.00034794,2]
[310219699,1704402696115,-1460.37,0.00034794,2]
[310219700,1704402696124,-647.5,0.00034794,2]
[310219701,1704402696134,-500.0,0.00034794,2]
[310219702,1704402696143,-500.0,0.00034794,2]
[310219703,1704402696154,-895.41,0.00034794,2]
[310219704,1704402696163,-500.0,0.00034794,2]
[310219705,1704402696173,-500.0,0.00034794,2]
[310219706,1704402696182,-500.0,0.00034794,2]
[310219707,1704402696192,-500.0,0.00034794,2]
[310219708,1704402696201,-500.0,0.00034794,2]
[310219709,1704402696211,-500.0,0.00034794,2]
[310219710,1704402696221,-500.0,0.00034794,2]
[310219711,1704402696233,-761.85,0.00034794,2]
[310219712,1704402696243,-500.0,0.00034794,2]
[310219713,1704402696253,-500.0,0.00034794,2]
[310219714,1704402696263,-500.0,0.00034794,2]
[310219715,1704402696273,-2111.24,0.00034794,2]
[310219716,1704402696283,-500.0,0.00034794,2]
[310219717,1704402696292,-500.0,0.00034794,2]
[310219718,1704402696302,-1731.46,0.00034794,2]
[310219719,1704402696311,-500.0,0.00034794,2]
[310219720,1704402696321,-928.81,0.00034794,2]
[310219721,1704402696330,-1123.24,0.00034794,2]
[310219722,1704402696340,-1937.57,0.00034794,2]
[310219723,1704402696349,-550.84,0.00034794,2]
[310219724,1704402696359,-500.0,0.00034794,2]
[310219725,1704402696369,-500.0,0.00034794,2]
[310219726,1704402696379,-500.0,0.00034794,2]
[310219727,1704402696388,-504.38,0.00034794,2]
[310219728,1704402696399,-1072.15,0.00034794,2]
[310219729,1704402696408,-500.0,0.00034794,2]